[Event "*** Titled Tuesday 3|2 Blitz"]
[Site "Chess.com"]
[Date "2015.05.05"]
[Round "2"]
[White "jcibarra"]
[Black "Tirantes"]
[Result "1-0"]
[WhiteElo "2500"]
[BlackElo "2222"]
[TimeControl "180+2"]
[EndTime "11:23:30 PDT"]
[Termination "jcibarra won on time"]

1. e4 {[%clk 0:03:01.9]} 1... e5 {[%clk 0:02:59.8]} 2. Nf3 {[%clk 0:03:02.9]}
2... Nc6 {[%clk 0:02:59.9]} 3. Nc3 {[%clk 0:03:04.2]} 3... Nf6 {[%clk
0:02:58.8]} 4. d4 {[%clk 0:03:05.2]} 4... exd4 {[%clk 0:02:58.2]} 5. Nxd4 {[%clk
0:03:07.1]} 5... Bc5 {[%clk 0:02:57.5]} 6. Be3 {[%clk 0:03:07.4]} 6... Bb6
{[%clk 0:02:56.1]} 7. Qd2 {[%clk 0:03:08.3]} 7... O-O {[%clk 0:02:53.3]} 8.
O-O-O {[%clk 0:03:08.9]} 8... Ng4 {[%clk 0:02:51.4]} 9. Bg5 {[%clk 0:03:09.2]}
9... f6 {[%clk 0:02:48.9]} 10. Nxc6 {[%clk 0:03:10.3]} 10... bxc6 {[%clk
0:02:47.1]} 11. Bh4 {[%clk 0:03:11.4]} 11... d6 {[%clk 0:02:45.1]} 12. h3 {[%clk
0:03:10.8]} 12... Nh6 {[%clk 0:02:41.6]} 13. Bc4+ {[%clk 0:03:10.1]} 13... Kh8
{[%clk 0:02:40.7]} 14. g4 {[%clk 0:03:05.3]} 14... Nf7 {[%clk 0:02:39.2]} 15. f4
{[%clk 0:03:05.2]} 15... Qe8 {[%clk 0:02:34.4]} 16. Rhe1 {[%clk 0:02:57.6]}
16... Be6 {[%clk 0:02:34.3]} 17. Nd5 {[%clk 0:02:32.2]} 17... Qd7 {[%clk
0:02:17.1]} 18. f5 {[%clk 0:02:31]} 18... Bxd5 {[%clk 0:02:13]} 19. exd5 {[%clk
0:02:31.5]} 19... Ne5 {[%clk 0:02:10.1]} 20. dxc6 {[%clk 0:02:25.7]} 20... Qxc6
{[%clk 0:01:54.5]} 21. Bd5 {[%clk 0:02:25.7]} 21... Qa4 {[%clk 0:01:54.8]} 22.
Re4 {[%clk 0:02:14.9]} 22... Qa6 {[%clk 0:01:43.6]} 23. Bxa8 {[%clk 0:01:53.8]}
23... Qxa2 {[%clk 0:01:32.7]} 24. Qd5 {[%clk 0:01:50.1]} 24... Qa1+ {[%clk
0:01:25.8]} 25. Kd2 {[%clk 0:01:51.2]} 25... Qxb2 {[%clk 0:01:23.6]} 26. Rxe5
{[%clk 0:01:32.1]} 26... dxe5 {[%clk 0:01:15.6]} 27. Bc6 {[%clk 0:01:30.2]}
27... h6 {[%clk 0:01:07.1]} 28. Qb3 {[%clk 0:01:18.4]} 28... Qd4+ {[%clk
0:00:59.9]} 29. Ke2 {[%clk 0:01:19.7]} 29... Qc5 {[%clk 0:00:48.1]} 30. Be4
{[%clk 0:01:17.6]} 30... a5 {[%clk 0:00:32.8]} 31. Be1 {[%clk 0:00:46.2]} 31...
a4 {[%clk 0:00:28.4]} 32. Qc3 {[%clk 0:00:45.5]} 32... Qg1 {[%clk 0:00:26]} 33.
Qg3 {[%clk 0:00:44.5]} 33... Qc5 {[%clk 0:00:22.1]} 34. Bf2 {[%clk 0:00:44.2]}
34... Qc4+ {[%clk 0:00:18.1]} 35. Qd3 {[%clk 0:00:44.1]} 35... Qb4 {[%clk
0:00:14.5]} 36. Be1 {[%clk 0:00:39.5]} 36... Qc5 {[%clk 0:00:13.3]} 37. h4
{[%clk 0:00:35.4]} 37... a3 {[%clk 0:00:12]} 38. g5 {[%clk 0:00:36.8]} 38...
fxg5 {[%clk 0:00:09.4]} 39. hxg5 {[%clk 0:00:38.7]} 39... Qg1 {[%clk 0:00:09.4]}
40. Qg3 {[%clk 0:00:34.8]} 40... Qxg3 {[%clk 0:00:08.7]} 41. Bxg3 {[%clk
0:00:35.6]} 41... hxg5 {[%clk 0:00:08.9]} 42. Rh1+ {[%clk 0:00:34.5]} 42... Kg8
{[%clk 0:00:08.7]} 43. Bd5+ {[%clk 0:00:36]} 43... Rf7 {[%clk 0:00:09.4]} 44.
Bxe5 {[%clk 0:00:37]} 44... Kf8 {[%clk 0:00:06.7]} 45. Bxf7 {[%clk 0:00:35.9]}
45... Kxf7 {[%clk 0:00:07.6]} 46. Kf3 {[%clk 0:00:36.7]} 46... c5 {[%clk
0:00:05.9]} 47. c4 {[%clk 0:00:36.3]} 47... Bd8 {[%clk 0:00:03.5]} 48. Ra1
{[%clk 0:00:35.4]} 48... Bf6 {[%clk 0:00:03.2]} 49. Bxf6 {[%clk 0:00:36.4]}
49... Kxf6 {[%clk 0:00:03.2]} 50. Ke4 {[%clk 0:00:36]} 50... g4 {[%clk
0:00:03.1]} 51. Rxa3 {[%clk 0:00:36.4]} 51... Kg5 {[%clk 0:00:03.9]} 52. Ra7
{[%clk 0:00:37.2]} 52... g3 {[%clk 0:00:03.5]} 53. Rxg7+ {[%clk 0:00:36.9]}
53... Kh4 {[%clk 0:00:03.7]} 54. Kf4 {[%clk 0:00:35.9]} 1-0

[Event "*** Titled Tuesday 3|2 Blitz"]
[Site "Chess.com"]
[Date "2015.05.05"]
[Round "2"]
[White "Boryboy"]
[Black "wonderfultime"]
[Result "0-1"]
[WhiteElo "2415"]
[BlackElo "2591"]
[TimeControl "180+2"]
[EndTime "11:23:34 PDT"]
[Termination "wonderfultime won by resignation"]

1. d4 {[%clk 0:03:01.9]} 1... d5 {[%clk 0:03:00.5]} 2. Nf3 {[%clk 0:03:03.1]}
2... Nf6 {[%clk 0:03:00.9]} 3. c4 {[%clk 0:03:04.2]} 3... c6 {[%clk 0:03:02.4]}
4. e3 {[%clk 0:03:05.1]} 4... Bf5 {[%clk 0:03:02.5]} 5. Nc3 {[%clk 0:03:04.9]}
5... e6 {[%clk 0:03:03.7]} 6. Nh4 {[%clk 0:03:06]} 6... Be4 {[%clk 0:03:05.2]}
7. f3 {[%clk 0:03:06.5]} 7... Bg6 {[%clk 0:03:06.8]} 8. Be2 {[%clk 0:03:06.8]}
8... Nbd7 {[%clk 0:03:06.5]} 9. Qb3 {[%clk 0:03:01.8]} 9... Qc7 {[%clk 0:03:07]}
10. Nxg6 {[%clk 0:03:00.7]} 10... hxg6 {[%clk 0:03:08.1]} 11. f4 {[%clk
0:03:02.4]} 11... Bd6 {[%clk 0:03:05]} 12. Bd2 {[%clk 0:02:55]} 12... a6 {[%clk
0:03:05.3]} 13. cxd5 {[%clk 0:02:54.6]} 13... cxd5 {[%clk 0:03:02.1]} 14. Rc1
{[%clk 0:02:53.8]} 14... Qb6 {[%clk 0:02:51.2]} 15. Qxb6 {[%clk 0:02:53.9]}
15... Nxb6 {[%clk 0:02:52.8]} 16. Bd3 {[%clk 0:02:49.4]} 16... Rc8 {[%clk
0:02:49.9]} 17. b3 {[%clk 0:02:47.5]} 17... Ke7 {[%clk 0:02:46.1]} 18. Ke2
{[%clk 0:02:48.7]} 18... Rc6 {[%clk 0:02:36.2]} 19. Nb1 {[%clk 0:02:42.9]} 19...
Rxc1 {[%clk 0:02:35.1]} 20. Bxc1 {[%clk 0:02:44.3]} 20... Rh5 {[%clk 0:01:29.2]}
21. Ba3 {[%clk 0:02:18.1]} 21... g5 {[%clk 0:01:19]} 22. Bxd6+ {[%clk
0:01:21.6]} 22... Kxd6 {[%clk 0:01:20.9]} 23. fxg5 {[%clk 0:01:21.3]} 23... Rxg5
{[%clk 0:01:19.8]} 24. g3 {[%clk 0:01:22.8]} 24... Rh5 {[%clk 0:01:20.6]} 25.
Kf3 {[%clk 0:01:17.9]} 25... Nbd7 {[%clk 0:01:18.1]} 26. Nc3 {[%clk 0:01:12.7]}
26... e5 {[%clk 0:01:18.6]} 27. Be2 {[%clk 0:01:12.3]} 27... exd4 {[%clk
0:01:14.1]} 28. exd4 {[%clk 0:01:13.4]} 28... Nb8 {[%clk 0:01:12.8]} 29. Ke3
{[%clk 0:01:13.4]} 29... Rh8 {[%clk 0:01:13.6]} 30. Bf3 {[%clk 0:01:02.1]} 30...
Nc6 {[%clk 0:01:14.9]} 31. a3 {[%clk 0:01:01.5]} 31... Ne7 {[%clk 0:01:11.4]}
32. Kd3 {[%clk 0:01:01.4]} 32... Nf5 {[%clk 0:01:08.1]} 33. g4 {[%clk
0:00:54.5]} 33... Rh3 {[%clk 0:01:06.8]} 34. gxf5 {[%clk 0:00:43.9]} 34... Rxf3+
{[%clk 0:01:08]} 35. Kd2 {[%clk 0:00:45.6]} 35... Rxf5 {[%clk 0:01:09.9]} 36.
Rg1 {[%clk 0:00:46.5]} 36... g6 {[%clk 0:01:08.7]} 37. Rg2 {[%clk 0:00:47.1]}
37... Rf3 {[%clk 0:01:09.3]} 38. Re2 {[%clk 0:00:46.9]} 38... Rh3 {[%clk
0:00:57.9]} 39. Kc2 {[%clk 0:00:45]} 39... g5 {[%clk 0:00:55.5]} 40. Rf2 {[%clk
0:00:45.5]} 40... Ke6 {[%clk 0:00:56.2]} 41. Re2+ {[%clk 0:00:46.5]} 41... Kd6
{[%clk 0:00:57.7]} 42. Rf2 {[%clk 0:00:47.9]} 42... Ke7 {[%clk 0:00:58.2]} 43.
Re2+ {[%clk 0:00:48.4]} 43... Kf8 {[%clk 0:00:59.7]} 44. Na4 {[%clk 0:00:45.8]}
44... Ne4 {[%clk 0:00:49.7]} 45. Nc5 {[%clk 0:00:45.2]} 45... Nxc5 {[%clk
0:00:51.1]} 46. dxc5 {[%clk 0:00:47.1]} 46... d4 {[%clk 0:00:53]} 47. Rd2 {[%clk
0:00:41.5]} 47... Rc3+ {[%clk 0:00:53.8]} 48. Kb2 {[%clk 0:00:43.1]} 48... Rxc5
{[%clk 0:00:54.7]} 49. Rxd4 {[%clk 0:00:44.8]} 49... Rc7 {[%clk 0:00:48.6]} 50.
b4 {[%clk 0:00:42.1]} 50... Kg7 {[%clk 0:00:49.5]} 51. a4 {[%clk 0:00:41.5]}
51... Kg6 {[%clk 0:00:50.4]} 52. Kb3 {[%clk 0:00:42.9]} 52... f5 {[%clk
0:00:51.1]} 53. b5 {[%clk 0:00:43]} 53... axb5 {[%clk 0:00:53]} 54. axb5 {[%clk
0:00:43.9]} 54... g4 {[%clk 0:00:53.8]} 55. Kb4 {[%clk 0:00:42]} 55... Kg5
{[%clk 0:00:54.4]} 56. b6 {[%clk 0:00:42.4]} 56... Rh7 {[%clk 0:00:55.5]} 57.
Rc4 {[%clk 0:00:40.6]} 57... Rxh2 {[%clk 0:00:55.8]} 58. Rc7 {[%clk 0:00:41.5]}
58... Rb2+ {[%clk 0:00:56.9]} 59. Kc5 {[%clk 0:00:43.1]} 59... Kf4 {[%clk
0:00:55.7]} 60. Rxb7 {[%clk 0:00:44.2]} 60... Kg3 {[%clk 0:00:57.1]} 61. Rf7
{[%clk 0:00:42.2]} 61... f4 {[%clk 0:00:58.4]} 62. b7 {[%clk 0:00:35.2]} 62...
f3 {[%clk 0:00:59.7]} 63. Kd4 {[%clk 0:00:36.8]} 63... f2 {[%clk 0:00:54.5]} 64.
Kd3 {[%clk 0:00:30.7]} 64... Rxb7 {[%clk 0:00:54.2]} 0-1

[Event "*** Titled Tuesday 3|2 Blitz"]
[Site "Chess.com"]
[Date "2015.05.05"]
[Round "2"]
[White "Haykos"]
[Black "Zhani-Z"]
[Result "1/2-1/2"]
[WhiteElo "2221"]
[BlackElo "2161"]
[TimeControl "180+2"]
[EndTime "11:24:07 PDT"]
[Termination "Game drawn by repetition"]

1. e4 {[%clk 0:03:01.9]} 1... e5 {[%clk 0:03:00.2]} 2. Nf3 {[%clk 0:03:01.7]}
2... Nc6 {[%clk 0:02:47.6]} 3. Bb5 {[%clk 0:03:00.7]} 3... a6 {[%clk 0:02:47.9]}
4. Ba4 {[%clk 0:03:01.8]} 4... Nf6 {[%clk 0:02:48.4]} 5. O-O {[%clk 0:03:02.9]}
5... Be7 {[%clk 0:02:45.6]} 6. Re1 {[%clk 0:03:02.9]} 6... b5 {[%clk 0:02:46.6]}
7. Bb3 {[%clk 0:03:03.9]} 7... d6 {[%clk 0:02:47]} 8. h3 {[%clk 0:03:04]} 8...
O-O {[%clk 0:02:44.1]} 9. c3 {[%clk 0:03:05.2]} 9... Nb8 {[%clk 0:02:45]} 10. d4
{[%clk 0:03:05.3]} 10... Nbd7 {[%clk 0:02:45.3]} 11. Bg5 {[%clk 0:03:05]} 11...
h6 {[%clk 0:02:26.3]} 12. Bh4 {[%clk 0:02:57.9]} 12... Bb7 {[%clk 0:02:01.9]}
13. Nbd2 {[%clk 0:02:25.1]} 13... c5 {[%clk 0:02:02.8]} 14. Bg3 {[%clk
0:02:18.8]} 14... Qc7 {[%clk 0:02:01.7]} 15. d5 {[%clk 0:02:14.1]} 15... c4
{[%clk 0:01:49.5]} 16. Bc2 {[%clk 0:02:14.8]} 16... Nc5 {[%clk 0:01:28.5]} 17.
Nh4 {[%clk 0:02:14.3]} 17... g6 {[%clk 0:01:20.7]} 18. f4 {[%clk 0:01:51.5]}
18... exf4 {[%clk 0:01:20.4]} 19. Bxf4 {[%clk 0:01:53.4]} 19... Nh5 {[%clk
0:01:21.5]} 20. Bxh6 {[%clk 0:01:12]} 20... Bxh4 {[%clk 0:01:21.7]} 21. Qg4
{[%clk 0:01:10.6]} 21... Bxe1 {[%clk 0:01:18.4]} 22. Rxe1 {[%clk 0:01:11.3]}
22... Rfe8 {[%clk 0:01:11.9]} 23. Rf1 {[%clk 0:01:09.5]} 23... Kh7 {[%clk
0:00:53.4]} 24. Be3 {[%clk 0:01:05.9]} 24... Re5 {[%clk 0:00:53.8]} 25. Bd4
{[%clk 0:01:05.4]} 25... f6 {[%clk 0:00:54.1]} 26. Qf3 {[%clk 0:00:57.9]} 26...
Rf8 {[%clk 0:00:42.7]} 27. g4 {[%clk 0:00:55.8]} 27... Ng7 {[%clk 0:00:43.8]}
28. Qg3 {[%clk 0:00:53.7]} 28... Qe7 {[%clk 0:00:39]} 29. Bxe5 {[%clk
0:00:31.7]} 29... fxe5 {[%clk 0:00:38.3]} 30. Nf3 {[%clk 0:00:31.5]} 30... Rf4
{[%clk 0:00:35.3]} 31. h4 {[%clk 0:00:32.3]} 31... Kg8 {[%clk 0:00:25.4]} 32.
Ng5 {[%clk 0:00:32.9]} 32... Rxf1+ {[%clk 0:00:25.2]} 33. Kxf1 {[%clk
0:00:34.8]} 33... Qf6+ {[%clk 0:00:26.4]} 34. Ke2 {[%clk 0:00:36.5]} 34... Bc8
{[%clk 0:00:27.6]} 35. b4 {[%clk 0:00:32.9]} 35... cxb3 {[%clk 0:00:27.5]} 36.
axb3 {[%clk 0:00:34.2]} 36... a5 {[%clk 0:00:28.8]} 37. b4 {[%clk 0:00:35.6]}
37... axb4 {[%clk 0:00:29.1]} 38. cxb4 {[%clk 0:00:37.5]} 38... Na4 {[%clk
0:00:29.4]} 39. Bd3 {[%clk 0:00:27.3]} 39... Bd7 {[%clk 0:00:23.2]} 40. Ke3
{[%clk 0:00:28.1]} 40... Ne8 {[%clk 0:00:22.6]} 41. Nf3 {[%clk 0:00:25.4]} 41...
Nc7 {[%clk 0:00:21.1]} 42. g5 {[%clk 0:00:25.9]} 42... Qf7 {[%clk 0:00:20.5]}
43. h5 {[%clk 0:00:26.3]} 43... gxh5 {[%clk 0:00:21.6]} 44. g6 {[%clk
0:00:27.4]} 44... Qf4+ {[%clk 0:00:22.7]} 45. Qxf4 {[%clk 0:00:28.9]} 45...
exf4+ {[%clk 0:00:24.1]} 46. Kxf4 {[%clk 0:00:30.8]} 46... Na6 {[%clk
0:00:25.4]} 47. Nd4 {[%clk 0:00:31.3]} 47... Nxb4 {[%clk 0:00:26.5]} 48. Bxb5
{[%clk 0:00:32.4]} 48... Bxb5 {[%clk 0:00:18.2]} 49. Nxb5 {[%clk 0:00:34.3]}
49... Nd3+ {[%clk 0:00:19.5]} 50. Kg5 {[%clk 0:00:35]} 50... Ndc5 {[%clk
0:00:13.5]} 51. Nxd6 {[%clk 0:00:35.8]} 51... Nc3 {[%clk 0:00:14.4]} 52. Kxh5
{[%clk 0:00:08.8]} 52... N3xe4 {[%clk 0:00:15.4]} 53. Nxe4 {[%clk 0:00:09.3]}
53... Nxe4 {[%clk 0:00:16.5]} 54. Kg4 {[%clk 0:00:11.2]} 54... Nd6 {[%clk
0:00:17.4]} 55. Kf4 {[%clk 0:00:11.6]} 55... Kg7 {[%clk 0:00:19]} 56. Ke5 {[%clk
0:00:13.5]} 56... Nc4+ {[%clk 0:00:20.4]} 57. Kd4 {[%clk 0:00:14.7]} 57... Nd6
{[%clk 0:00:21.8]} 58. Ke5 {[%clk 0:00:16.1]} 58... Nc4+ {[%clk 0:00:23.1]} 59.
Kd4 {[%clk 0:00:17.5]} 59... Nd6 {[%clk 0:00:24.8]} 60. Ke5 {[%clk 0:00:19]}
60... Nc4+ {[%clk 0:00:26.5]} 1/2-1/2

[Event "*** Titled Tuesday 3|2 Blitz"]
[Site "Chess.com"]
[Date "2015.05.05"]
[Round "2"]
[White "WanderingPuppet"]
[Black "MrHenriksson"]
[Result "0-1"]
[WhiteElo "2088"]
[BlackElo "2027"]
[TimeControl "180+2"]
[EndTime "11:24:12 PDT"]
[Termination "MrHenriksson won by resignation"]

1. e4 {[%clk 0:03:01.9]} 1... c6 {[%clk 0:03:00.7]} 2. Nc3 {[%clk 0:03:01.2]}
2... d5 {[%clk 0:03:02.1]} 3. Nf3 {[%clk 0:03:02.8]} 3... Bg4 {[%clk 0:03:00.1]}
4. d4 {[%clk 0:03:02.9]} 4... dxe4 {[%clk 0:02:58.9]} 5. Nxe4 {[%clk 0:03:03.6]}
5... Nf6 {[%clk 0:03:00.4]} 6. Nxf6+ {[%clk 0:03:03.4]} 6... gxf6 {[%clk
0:03:02]} 7. Bc4 {[%clk 0:03:04.1]} 7... Bxf3 {[%clk 0:03:01.5]} 8. gxf3 {[%clk
0:02:53.3]} 8... e6 {[%clk 0:02:38.7]} 9. c3 {[%clk 0:02:51.1]} 9... Nd7 {[%clk
0:02:33.4]} 10. Be3 {[%clk 0:02:36.5]} 10... Bd6 {[%clk 0:02:29.7]} 11. Qb3
{[%clk 0:02:25.5]} 11... Qc7 {[%clk 0:02:20.9]} 12. Bxe6 {[%clk 0:02:06.9]}
12... fxe6 {[%clk 0:02:21.1]} 13. Qxe6+ {[%clk 0:02:08.8]} 13... Kd8 {[%clk
0:02:22.1]} 14. Rg1 {[%clk 0:02:08.5]} 14... Re8 {[%clk 0:01:48.8]} 15. Qf5
{[%clk 0:01:50.7]} 15... Nf8 {[%clk 0:01:30.9]} 16. Qxf6+ {[%clk 0:01:42.8]}
16... Qe7 {[%clk 0:01:31.3]} 17. Qxe7+ {[%clk 0:01:04.5]} 17... Rxe7 {[%clk
0:01:21]} 18. O-O-O {[%clk 0:01:05]} 18... Rf7 {[%clk 0:01:21.7]} 19. Rd3 {[%clk
0:00:45.3]} 19... Bxh2 {[%clk 0:01:14.2]} 20. Rg8 {[%clk 0:00:46]} 20... Bf4
{[%clk 0:01:12.3]} 21. Kd2 {[%clk 0:00:37.4]} 21... Kd7 {[%clk 0:01:11.8]} 22.
d5 {[%clk 0:00:36.9]} 22... c5 {[%clk 0:01:07]} 23. Ke2 {[%clk 0:00:33.1]} 23...
Re8 {[%clk 0:01:05.8]} 24. c4 {[%clk 0:00:22.5]} 24... Ng6 {[%clk 0:00:56.3]}
25. Rxe8 {[%clk 0:00:23.4]} 25... Kxe8 {[%clk 0:00:55.8]} 26. Rb3 {[%clk
0:00:24]} 26... b6 {[%clk 0:00:53.8]} 27. a4 {[%clk 0:00:24]} 27... Kd7 {[%clk
0:00:41.7]} 28. a5 {[%clk 0:00:25]} 28... Kc7 {[%clk 0:00:42.7]} 29. axb6+
{[%clk 0:00:25.6]} 29... axb6 {[%clk 0:00:43.2]} 30. Ra3 {[%clk 0:00:27.1]}
30... Kb7 {[%clk 0:00:43.9]} 31. Ra1 {[%clk 0:00:25.2]} 31... Ne5 {[%clk
0:00:41.3]} 32. b3 {[%clk 0:00:26.6]} 32... Bxe3 {[%clk 0:00:41.4]} 33. Kxe3
{[%clk 0:00:25.3]} 33... Nxf3 {[%clk 0:00:39.2]} 34. Rh1 {[%clk 0:00:25.7]}
34... Nd4 {[%clk 0:00:39.2]} 35. f4 {[%clk 0:00:24.9]} 35... Nxb3 {[%clk
0:00:37.9]} 36. Rh6 {[%clk 0:00:22.6]} 36... Na5 {[%clk 0:00:36.5]} 37. Kd3
{[%clk 0:00:20.6]} 37... Kc7 {[%clk 0:00:30.5]} 38. Re6 {[%clk 0:00:14.1]} 38...
h5 {[%clk 0:00:28.1]} 39. Rh6 {[%clk 0:00:11.5]} 39... Rxf4 {[%clk 0:00:28]} 40.
Rxh5 {[%clk 0:00:12.9]} 40... Nxc4 {[%clk 0:00:27.4]} 41. Rh6 {[%clk 0:00:11.3]}
41... Nd6 {[%clk 0:00:26.6]} 42. Kc3 {[%clk 0:00:11.1]} 42... b5 {[%clk
0:00:27.3]} 43. Rh7+ {[%clk 0:00:12.3]} 43... Rf7 {[%clk 0:00:27.3]} 44. Rh6
{[%clk 0:00:13.9]} 44... Rf3+ {[%clk 0:00:24.9]} 45. Kc2 {[%clk 0:00:14.4]}
45... b4 {[%clk 0:00:25.8]} 46. Rh7+ {[%clk 0:00:14.9]} 46... Rf7 {[%clk
0:00:25.6]} 47. Rh6 {[%clk 0:00:16.8]} 47... c4 {[%clk 0:00:25.9]} 48. Rh4
{[%clk 0:00:17.5]} 48... Kb6 {[%clk 0:00:25.7]} 49. Rh6 {[%clk 0:00:18]} 49...
Kc5 {[%clk 0:00:26.7]} 50. Rh5 {[%clk 0:00:17.5]} 50... Rf5 {[%clk 0:00:27.5]}
51. Rh8 {[%clk 0:00:17.8]} 51... Rxd5 {[%clk 0:00:28.3]} 52. Rd8 {[%clk
0:00:18]} 52... Kd4 {[%clk 0:00:27.9]} 53. Rh8 {[%clk 0:00:18.6]} 53... b3+
{[%clk 0:00:28]} 54. Kb2 {[%clk 0:00:19.5]} 54... Re5 {[%clk 0:00:28.5]} 55.
Rh4+ {[%clk 0:00:19.9]} 55... Re4 {[%clk 0:00:29.2]} 56. Rh2 {[%clk 0:00:21.8]}
56... Nb5 {[%clk 0:00:28.2]} 57. Rd2+ {[%clk 0:00:22.5]} 57... Kc5 {[%clk
0:00:29.1]} 58. Rh2 {[%clk 0:00:24.4]} 58... Kb4 {[%clk 0:00:29.9]} 59. Kc1
{[%clk 0:00:21.3]} 59... c3 {[%clk 0:00:30.2]} 60. Kd1 {[%clk 0:00:18]} 60...
Na3 {[%clk 0:00:29.7]} 61. Rh8 {[%clk 0:00:16.8]} 61... b2 {[%clk 0:00:27.9]}
62. Rb8+ {[%clk 0:00:17.1]} 62... Nb5 {[%clk 0:00:28.5]} 63. Kc2 {[%clk
0:00:08.8]} 63... Re2+ {[%clk 0:00:28.6]} 0-1

[Event "*** Titled Tuesday 3|2 Blitz"]
[Site "Chess.com"]
[Date "2015.05.05"]
[Round "2"]
[White "IMRosen"]
[Black "Tomsel"]
[Result "0-1"]
[WhiteElo "2213"]
[BlackElo "2362"]
[TimeControl "180+2"]
[EndTime "11:24:19 PDT"]
[Termination "Tomsel won by resignation"]

1. c4 {[%clk 0:03:01.9]} 1... Nf6 {[%clk 0:02:59.3]} 2. Nc3 {[%clk 0:03:02.8]}
2... d5 {[%clk 0:02:57.7]} 3. cxd5 {[%clk 0:03:03.4]} 3... Nxd5 {[%clk
0:02:58.3]} 4. g3 {[%clk 0:03:04.4]} 4... g6 {[%clk 0:02:55.1]} 5. Bg2 {[%clk
0:03:05.7]} 5... Nb6 {[%clk 0:02:55.6]} 6. h4 {[%clk 0:03:04.3]} 6... h5 {[%clk
0:02:55.1]} 7. Nh3 {[%clk 0:03:03.6]} 7... Bg7 {[%clk 0:02:55.4]} 8. d3 {[%clk
0:03:02.3]} 8... c5 {[%clk 0:02:56.1]} 9. Ng5 {[%clk 0:02:56.4]} 9... O-O {[%clk
0:02:55.4]} 10. Be3 {[%clk 0:02:55.8]} 10... Na6 {[%clk 0:02:46.4]} 11. Rc1
{[%clk 0:02:52.7]} 11... c4 {[%clk 0:02:38.3]} 12. d4 {[%clk 0:02:45.8]} 12...
Nb4 {[%clk 0:02:33.5]} 13. O-O {[%clk 0:02:40.6]} 13... e6 {[%clk 0:01:34.4]}
14. f4 {[%clk 0:02:29.4]} 14... N4d5 {[%clk 0:01:27.3]} 15. Bf2 {[%clk
0:02:29.9]} 15... Bd7 {[%clk 0:01:23.6]} 16. a3 {[%clk 0:02:12.8]} 16... Bc6
{[%clk 0:01:20.7]} 17. e4 {[%clk 0:02:13.7]} 17... Nf6 {[%clk 0:01:21.6]} 18.
Kh1 {[%clk 0:02:08.4]} 18... Ng4 {[%clk 0:01:21.9]} 19. Bg1 {[%clk 0:02:09.9]}
19... Qf6 {[%clk 0:00:33]} 20. Qe2 {[%clk 0:01:54.7]} 20... Rad8 {[%clk
0:00:28]} 21. Rcd1 {[%clk 0:01:53.1]} 21... Qe7 {[%clk 0:00:22.6]} 22. Rfe1
{[%clk 0:01:35.3]} 22... Rfe8 {[%clk 0:00:21.7]} 23. Qc2 {[%clk 0:01:27.3]}
23... Qf6 {[%clk 0:00:22.1]} 24. a4 {[%clk 0:01:13.1]} 24... a5 {[%clk
0:00:21.7]} 25. d5 {[%clk 0:01:14.2]} 25... Nxd5 {[%clk 0:00:16.2]} 26. exd5
{[%clk 0:01:13.6]} 26... exd5 {[%clk 0:00:17.6]} 27. Rxe8+ {[%clk 0:01:05.5]}
27... Rxe8 {[%clk 0:00:19.5]} 28. Nxd5 {[%clk 0:01:06.3]} 28... Qxb2 {[%clk
0:00:19.8]} 29. Rc1 {[%clk 0:00:50.1]} 29... Re2 {[%clk 0:00:11]} 30. Qxb2
{[%clk 0:00:31.4]} 30... Bxb2 {[%clk 0:00:12.9]} 31. Ne7+ {[%clk 0:00:33.1]}
31... Rxe7 {[%clk 0:00:11.3]} 32. Rxc4 {[%clk 0:00:30]} 32... Bxg2+ {[%clk
0:00:10.7]} 33. Kxg2 {[%clk 0:00:31.6]} 33... Re2+ {[%clk 0:00:11.4]} 34. Kf3
{[%clk 0:00:30.4]} 34... Re1 {[%clk 0:00:12.4]} 35. Bc5 {[%clk 0:00:22.3]} 35...
Rf1+ {[%clk 0:00:11.5]} 36. Kg2 {[%clk 0:00:22.7]} 36... Re1 {[%clk 0:00:11.4]}
37. Bb6 {[%clk 0:00:16.2]} 37... Bf6 {[%clk 0:00:10.4]} 38. Ne4 {[%clk
0:00:15.8]} 38... Be7 {[%clk 0:00:09.2]} 39. Rc8+ {[%clk 0:00:16.5]} 39... Kh7
{[%clk 0:00:06.9]} 40. Bd4 {[%clk 0:00:16.5]} 40... f6 {[%clk 0:00:04.1]} 41.
Ng5+ {[%clk 0:00:18.1]} 41... Kg7 {[%clk 0:00:04.2]} 42. Nf3 {[%clk 0:00:19.3]}
42... Re2+ {[%clk 0:00:04.9]} 43. Kf1 {[%clk 0:00:20.7]} 43... Ra2 {[%clk
0:00:04.9]} 44. Rc7 {[%clk 0:00:21.9]} 44... Kf8 {[%clk 0:00:05.4]} 45. Rxb7
{[%clk 0:00:21]} 45... Rxa4 {[%clk 0:00:06.2]} 46. Rb8+ {[%clk 0:00:21.4]} 46...
Kf7 {[%clk 0:00:07.1]} 47. Rb7 {[%clk 0:00:23]} 47... Ke6 {[%clk 0:00:07.9]} 48.
Rb6+ {[%clk 0:00:21.7]} 48... Kd5 {[%clk 0:00:08.5]} 49. Bb2 {[%clk 0:00:20.7]}
49... Ke4 {[%clk 0:00:09.4]} 50. Ne1 {[%clk 0:00:20.3]} 50... Rb4 {[%clk
0:00:06.3]} 51. Re6+ {[%clk 0:00:20.9]} 51... Kf5 {[%clk 0:00:06.7]} 52. Re2
{[%clk 0:00:11.4]} 52... Bc5 {[%clk 0:00:06.6]} 53. Nf3 {[%clk 0:00:10.6]} 53...
Ne3+ {[%clk 0:00:07.6]} 54. Ke1 {[%clk 0:00:10.8]} 54... Ke4 {[%clk 0:00:08.4]}
55. Bc1 {[%clk 0:00:10.5]} 55... Kxf3 {[%clk 0:00:08.9]} 56. Rf2+ {[%clk
0:00:10.5]} 56... Kxg3 {[%clk 0:00:10.1]} 57. Re2 {[%clk 0:00:10.4]} 57... Rb1
{[%clk 0:00:11.2]} 58. Kd2 {[%clk 0:00:11.8]} 58... Kf3 {[%clk 0:00:10.4]} 59.
Rh2 {[%clk 0:00:10.4]} 59... Nf1+ {[%clk 0:00:11.4]} 60. Kc2 {[%clk 0:00:11.2]}
60... Rxc1+ {[%clk 0:00:13.3]} 61. Kxc1 {[%clk 0:00:12.2]} 61... Nxh2 {[%clk
0:00:15.2]} 62. f5 {[%clk 0:00:13.3]} 62... gxf5 {[%clk 0:00:16]} 0-1